[Event "USA Senior-ch TB 2022"]
[Site "Saint Louis"]
[Date "2022.07.19"]
[Round "5.1"]
[White "Christiansen, Larry"]
[Black "Shabalov, Alexander"]
[Result "0-1"]
[ECO "A33"]
[WhiteElo "2577"]
[BlackElo "2510"]
[Annotator "TA"]
[PlyCount "116"]
[EventDate "2022.07.07"]
[EventType "tourn"]
[EventCountry "USA"]
[SourceTitle "playchess.com"]
[Source "ChessBase"]
[SourceQuality "1"]
[TimeControl "180+2"]

{[%evp 16,115,41,41,50,29,41,34,32,-34,-38,-89,-66,-112,-99,-87,-79,-69,-62,-52,-62,-60,-61,-70,-62,-62,-62,-61,-63,-68,-46,-106,-107,-143,-110,-125,-133,-170,-102,-179,-168,-183,-179,-206,-199,-192,-206,-192,-199,-215,-207,-194,-165,-168,-80,-104,-120,-131,-28,-123,-113,-269,-282,-281,-269,-307,-318,-456,-443,-412,-205,-189,-230,-218,-208,-225,-224,-239,-231,-241,-236,-236,-234,-235,-237,-228,-79,-387,-388,-375,-363,-525,-419,-363,-221,-271,-266,-509,-491,-460,-460,-29999]} 1. c4 {[%emt 0:00:00]} c5 {[%emt 0:00:00]} 2. Nf3 {[%emt 0:00:00]} Nc6 {[%emt 0:00:00]} 3. d4 {[%emt 0:00:00]} cxd4 {[%emt 0:00:00]} 4. Nxd4 {[%emt 0:00:00]} Nf6 {[%emt 0:00:00]} 5. Nc3 {[%emt 0:00:00]} e6 {[%emt 0:00:00]} 6. g3 {[%emt 0:00:00]} Bc5 {[%emt 0:00:00]} 7. Nb3 {[%emt 0:00:00]} Be7 {[%emt 0:00:00]} 8. Bg2 {[%emt 0:00:00]} O-O {[%emt 0:00:00]} 9. O-O {[%emt 0:00:00]} b6 {[%emt 0:00:00][%cal Bb7b6,Bb6b5][%mdl 32] A33: Symmetrical English: 2 Nf3 Nf6 3 d4 cxd4 4 Nxd4 e6 5 Nc3 Nc6.} 10. e4 {[%emt 0:00:00][%cal Oe4e5]} Ba6 {[%emt 0:00:00]} 11. Nd2 {[%emt 0:00:00]} Rc8 {[%emt 0:00:00] [#] White is slightly better.} 12. Re1 $146 {[%emt 0:00:00]} (12. b3 $14) ({Predecessor:} 12. b3 Ne5 13. Qe2 d6 14. Bb2 Nc6 15. Rfe1 Nd7 16. Nd5 exd5 17. exd5 Nce5 18. f4 {0-1 (26) Albayrak,A (1901)-Lomsadze,D (2352) Canakkale 2018}) 12... Ne5 $15 {[%emt 0:00:00]} 13. b3 {[%emt 0:00:00]} (13. Nb5 $15) 13... Bb4 {[%emt 0:00:00]} 14. Qc2 {[%emt 0:00:00]} (14. Ndb1 $15) 14... b5 $1 $17 {[%emt 0:00:00][%cal Rb5c4] Black is more active.} 15. a3 {[%emt 0:00:00]} Be7 {[%emt 0:00:00][%cal Rb5c4]} 16. Nf3 {[%emt 0:00:00]} Nxf3+ {[%emt 0:00:00]} 17. Bxf3 {[%emt 0:00:00]} bxc4 {[%emt 0:00:00]} 18. b4 {[%emt 0:00:00]} Bb7 {[%emt 0:00:00]} 19. Bf4 {[%emt 0:00:00]} d6 {[%emt 0:00:00]} 20. Rad1 {[%emt 0:00:00]} Qb6 {[%emt 0:00:00]} 21. Be3 {[%emt 0:00:00]} Qa6 {[%emt 0:00:00]} 22. a4 {[%emt 0:00:00]} Nd7 {[%emt 0:00:00]} 23. b5 {[%emt 0:00:00]} ({White should play} 23. a5 $15) 23... Qa5 {[%emt 0:00:00]} 24. Bd2 {[%emt 0:00:00][%cal Oc3d5]} Ne5 {[%emt 0:00:00]} 25. Be2 {[%emt 0:00:00][%cal Oc3d5]} Qc7 {[%emt 0:00:00]} 26. Be3 {[%emt 0:00:00]} Ba8 {[%emt 0:00:00]} (26... Nd3 $1 $19 27. Rf1 Bf6) 27. Bf4 {[%emt 0:00:00]} (27. Rc1 $17 {might work better.}) 27... f5 $19 {[%emt 0:00:00]} 28. Bxe5 {[%emt 0:00:00]} dxe5 {[%emt 0:00:00]} 29. Bf1 {[%emt 0:00:05]} f4 {[%emt 0:00:00]} 30. Bh3 {[%emt 0:00:06]} Rf6 {[%emt 0:00:00]} 31. f3 {[%emt 0:00:34]} fxg3 {[%emt 0:00:00]} 32. hxg3 {[%emt 0:00:02]} Rcf8 {[%emt 0:00:00]} ({Weaker is} 32... Rxf3 33. Bxe6+ Kh8 34. Kg2 $17) 33. Rf1 {[%emt 0:00:17]} Rg6 {[%emt 0:00:00]} ({Not} 33... Rxf3 34. Bxe6+ Kh8 35. Rxf3 Rxf3 36. Kg2 $15) 34. Kg2 {[%emt 0:00:11]} Bh4 {[%emt 0:00:00]} (34... h5 $19 35. Qd2 Bb4) 35. Ne2 $17 {[%emt 0:00:02]} Bg5 $1 {[%emt 0:00:00] Against Qd2} 36. Bg4 {[%emt 0:00:05]} h6 {[%emt 0:00:06]} ({Better is} 36... Be3 $17 37. a5 Qc5) 37. a5 {[%emt 0:00:03]} (37. Rd3 $1 $11 {remains equal.}) 37... Be3 {[%emt 0:00:14]} ({Don't play} 37... Qxa5 38. Qxc4 Bb7 39. Bxe6+ Kh8 40. Qc5 $16) 38. Qc3 $2 {[%emt 0:00:08]} (38. Ra1 $17 {was called for.}) 38... Qc5 $19 {[%emt 0:00:15][%cal Og6g4] ...Rxg4! is the strong threat.} 39. Bh3 {[%emt 0:00:42]} Rgf6 {[%emt 0:00:03]} 40. Bg4 {[%emt 0:00:02]} g6 {[%emt 0:00:04]} 41. Kh2 {[%emt 0:00:55]} (41. Bh3 {is a better defense.}) 41... h5 {[%emt 0:00:51]} 42. Bh3 {[%emt 0:00:02]} Kg7 {[%emt 0:00:06]} (42... g5 $142 {Hoping for ...g4.} 43. Bg2 g4 44. fxg4 Rxf1 45. Rxf1 Rxf1 46. Bxf1 hxg4) 43. Bg2 {[%emt 0:00:07]} g5 {[%emt 0:00:11]} 44. Rd7+ {[%emt 0:00:10]} Kg6 {[%emt 0:00:02][%cal Oa8e4]} 45. b6 {[%emt 0:00:10]} axb6 {[%emt 0:00:05]} 46. axb6 {[%emt 0:00:02] [#]} Bc6 {[%emt 0:00:22] A strong pair of Bishops.} 47. Rc7 {[%emt 0:00:07][%cal Oc7c6]} Bd4 {[%emt 0:00:03] Really sharp!} 48. Rxc6 {[%emt 0:00:08]} Qxc6 {[%emt 0:00:02]} 49. Nxd4 {[%emt 0:00:02]} exd4 50. Qxd4 {[%emt 0:00:02] [#]} h4 {[%emt 0:00:16]} (50... e5 $1 $19 {[%cal Re5d4] and Black stays clearly on top.} 51. Qxe5 Qxb6) 51. e5 {[%emt 0:00:02][%mdl 8192]} (51. gxh4 $17 {nothing else works.} Rh8 52. Kg3 gxh4+ 53. Kh2) 51... hxg3+ {[%emt 0:00:07]} 52. Kxg3 {[%emt 0:00:03]} Rf4 {[%emt 0:00:04]} 53. Qe3 {[%emt 0:00:14]} (53. Qd6 $142 Qxd6 54. exd6) 53... Rb8 {[%emt 0:00:18]} 54. Rb1 {[%emt 0:00:05]} c3 {[%emt 0:00:03]} 55. Qd3+ {[%emt 0:00:02]} Kg7 {[%emt 0:00:02] And now ...Qc4 would win.} 56. Rh1 $2 {[%emt 0:00:05]} (56. Rc1 {was worth a try.}) 56... Rf5 {[%emt 0:00:09]} 57. Rc1 {[%emt 0:00:04]} Qa4 {[%emt 0:00:11][%csl Gg5][%cal Ra4h4]} 58. Qxc3 {[%emt 0:00:07]} (58. Qe4 $19 Qxe4 59. fxe4 Rxe5 60. Rxc3) 58... Qh4# {[%emt 0:00:16] Weighted Error Value: White=0.50/Black=0.22 (precise)} 0-1

[Event "USA Senior-ch TB 2022"]
[Site "Saint Louis"]
[Date "2022.07.19"]
[Round "5.2"]
[White "Dlugy, Maxim"]
[Black "Akopian, Vladimir"]
[Result "1/2-1/2"]
[ECO "B07"]
[WhiteElo "2513"]
[BlackElo "2620"]
[Annotator "TA"]
[PlyCount "82"]
[EventDate "2022.07.07"]
[EventType "tourn"]
[EventCountry "USA"]
[SourceTitle "playchess.com"]
[Source "ChessBase"]
[SourceQuality "1"]
[TimeControl "180+2"]

{[%evp 9,82,57,58,54,77,67,87,112,116,90,95,93,86,96,108,109,113,76,93,58,108,106,137,62,106,76,52,31,34,41,73,78,66,67,93,87,65,58,55,45,53,60,57,72,85,72,71,71,73,68,72,79,80,29,57,40,66,22,18,17,31,27,80,0,0,0,0,0,0,0,0,0,0,0,0]} 1. d4 {[%emt 0:00:00]} Nf6 {[%emt 0:00:00]} 2. Bf4 {[%emt 0:00:00]} g6 {[%emt 0:00:00]} 3. Nc3 {[%emt 0:00:00]} Bg7 {[%emt 0:00:00]} 4. e4 {[%emt 0:00:00]} d6 {[%emt 0:00:00]} 5. Qd2 {[%emt 0:00:00]} Nc6 {[%emt 0:00:00]} 6. O-O-O {[%emt 0:00:00] B07: Pirc Defence: Miscellaneous Systems.} O-O {[%emt 0:00:00]} 7. f3 {[%emt 0:00:00]} Nh5 {[%emt 0:00:00]} 8. Bh6 {[%emt 0:00:00] White is better.} e5 {[%emt 0:00:00][%cal Rc6d4]} 9. Nge2 {[%emt 0:00:00] [#]} (9. Bxg7 {with more complications.} Kxg7 10. Nge2 exd4 11. Nxd4 Kg8 12. Kb1) 9... Nxd4 $146 {[%emt 0:00:00]} ({Predecessor:} 9... Bxh6 10. Qxh6 exd4 11. Nxd4 Nxd4 12. Rxd4 Bd7 13. g4 Nf6 14. h4 Qe7 15. h5 Be6 16. Rd2 Kh8 17. Qe3 Kg8 18. Rdh2 Rad8 19. Qh6 c6 20. Bd3 Kh8 21. e5 {1-0 (21) Wei,Y (2728)-Wan,Y (2482) Beijing 2017}) 10. Nxd4 {[%emt 0:00:00]} exd4 {[%emt 0:00:00]} 11. Bxg7 {[%emt 0:00:00]} Nxg7 {[%emt 0:00:00]} 12. Qxd4 {[%emt 0:00:00]} Be6 {[%emt 0:00:00]} 13. Kb1 {[%emt 0:00:00]} Qg5 {[%emt 0:00:00]} 14. g3 {[%emt 0:00:00]} Qe5 {[%emt 0:00:00] [#]} (14... Qc5 $14) 15. Qd2 $1 $16 {[%emt 0:00:00]} Qa5 {[%emt 0:00:00]} 16. f4 {[%emt 0:00:00]} (16. g4 $16) 16... b5 {[%emt 0:00:00]} 17. Nd5 {[%emt 0:00:00]} Qxd2 {[%emt 0:00:00][%cal Rd2d1]} 18. Nf6+ {[%emt 0:00:00]} Kh8 {[%emt 0:00:00][%cal Rd2d1]} 19. Rxd2 {[%emt 0:00:00]} b4 {[%emt 0:00:00]} 20. Bb5 {[%emt 0:00:00]} Rab8 {[%emt 0:00:00]} 21. Ba4 {[%emt 0:00:00]} Nh5 {[%emt 0:00:00]} 22. Nxh5 {[%emt 0:00:00]} gxh5 {[%emt 0:00:00]} 23. Re1 {[%emt 0:00:00]} f6 {[%emt 0:00:00]} 24. Bb3 {[%emt 0:00:00]} Bxb3 {[%emt 0:00:00]} 25. cxb3 $14 {[%emt 0:00:00][%mdl 4096] Endgame KRR-KRR} h4 {[%emt 0:00:00]} 26. gxh4 {[%emt 0:00:00]} Rg8 {[%emt 0:00:00]} 27. e5 {[%emt 0:00:00]} fxe5 {[%emt 0:00:06]} 28. fxe5 {[%emt 0:00:00][%cal Bf4e5,Be5e6,Be6e7][%mdl 32]} Rbe8 {[%emt 0:00:17]} 29. e6 {[%emt 0:00:00]} Rg6 {[%emt 0:00:38]} 30. e7 {[%emt 0:00:00]} Kg7 {[%emt 0:00:02]} 31. a3 {[%emt 0:00:00]} (31. Rc2 $16) 31... a5 {[%emt 0:00:10]} 32. Rd5 {[%emt 0:00:00]} c5 {[%emt 0:00:07]} 33. Red1 {[%emt 0:00:02] White is more active.} (33. h5 {keeps more tension.} Rh6 34. Rd2 Rxh5 35. Rxd6 Rxh2 36. Rd5) 33... Rxe7 {[%emt 0:00:05]} 34. Rxd6 {[%emt 0:00:02]} Rxd6 {[%emt 0:00:09]} 35. Rxd6 $11 {[%emt 0:00:02] KR-KR} Re3 {[%emt 0:00:07] [#]} (35... Re1+ $11 {keeps the balance.} 36. Kc2 Re2+ 37. Rd2 Re4) 36. Ka2 {[%emt 0:00:52]} ({White should try} 36. a4 $1 $16) 36... bxa3 {[%emt 0:00:13] The position is equal.} 37. Kxa3 {[%emt 0:00:41]} c4 {[%emt 0:00:02]} 38. Rb6 {[%emt 0:00:02]} (38. Rd2 $5 {[%cal Rd2g2]}) 38... Rh3 {[%emt 0:00:05][%csl LRh2,LRh4]} 39. Ka4 {[%emt 0:00:02]} cxb3 {[%emt 0:00:12]} 40. Rxb3 {[%emt 0:00:02]} Rxh4+ {[%emt 0:00:04]} 41. Kxa5 {[%emt 0:00:02] Hoping for Rg3+.} Rxh2 {[%emt 0:00:02] Weighted Error Value: White=0.14 (very precise) /Black=0.12 (very precise)} 1/2-1/2